bitfinex/quotes_ETHUSD_20260208
["timestamp","ask_amount","ask_price","bid_price","bid_amount"]
[1770587983477,0.002,2098.9,2098.7,0.97009818]
[1770587984488,1.19081309,2099.5,2098.7,0.97009818]
[1770587984689,1.19081309,2099.5,2098.9,0.97009818]
[1770587985493,4.5207417,2099.6,2098.9,0.97009818]
[1770587985662,3.33,2099.6,2098.9,0.97009818]
[1770587985867,4.52071101,2099.6,2098.9,0.97009818]
[1770587986072,3.33,2099.6,2098.9,0.97009818]
[1770587986372,0.80084359,2099.9,2098.9,0.97009818]
[1770587986763,1.19058957,2099.8,2099.1,0.93918952]
[1770587988705,0.80084359,2099.7,2098.7,1.1911863]
[1770587988893,0.80084359,2099.7,2098.7,2.13037582]
[1770587988894,0.84838768,2099.7,2098.7,2.13037582]
[1770587989813,0.80084359,2099.7,2098.7,0.93918952]
[1770587990395,0.80084359,2099.5,2098.7,0.93918952]
[1770587990775,1.19081642,2099.4,2098.9,0.5]
[1770587991803,1.19081642,2099.4,2098.9,1.43918952]
[1770587993496,1.19070299,2099.6,2098.9,1.43918952]
[1770587993684,1.99154658,2099.6,2098.9,1.43918952]
[1770587995098,1.19070299,2099.6,2098.9,1.43918952]
[1770587995298,1.19070299,2099.6,2099.0,0.93918952]
[1770587995601,4.76260497,2099.7,2099.0,0.93918952]
[1770587996304,0.80084359,2099.5,2098.1,0.93918952]
[1770587996483,0.80084359,2099.5,2098.0,0.001]
[1770587996484,9.81532306,2098.8,2098.0,0.001]
[1770587996849,9.81532306,2098.8,2097.2,0.001]
[1770587996850,0.80084359,2097.9,2097.2,0.001]
[1770587996973,0.15215478,2098.3,2097.2,0.001]
[1770587996974,0.80084359,2097.7,2097.2,0.001]
[1770587997173,0.80084359,2097.3,2096.1,0.001]
[1770587997413,0.80084359,2097.3,2095.8,0.001]
[1770587997414,0.80084359,2096.7,2095.8,0.001]
[1770587997701,0.80084359,2096.7,2095.2,4.77281036]
[1770587997702,0.80084359,2096.2,2094.9,0.94018952]
[1770587997875,0.37094824,2096.1,2095.0,1.19329429]
[1770587998201,0.37094824,2096.1,2094.9,0.94018952]
[1770587998202,0.80084359,2096.0,2094.9,0.001]
[1770587998384,13.14332306,2095.9,2094.9,0.001]
[1770587998801,0.80084359,2095.8,2094.9,0.001]
[1770587999708,1.19291883,2095.7,2094.9,0.001]
[1770588000275,1.19144069,2098.3,2096.4,0.93918952]
[1770588000471,1.19144069,2098.3,2098.0,4.145465]
[1770588000472,1.24119547,2098.3,2098.0,4.145465]
[1770588000679,0.32116324,2098.6,2097.1,0.93918952]
[1770588000905,1.19136683,2098.5,2097.1,0.93918952]
[1770588001206,1.51244274,2098.6,2097.1,0.93918952]
[1770588001396,0.32116324,2098.6,2097.3,0.93918952]
[1770588001789,0.32116324,2098.6,2097.4,1.29653062]
[1770588001790,9.81532306,2098.2,2097.4,1.29653062]
[1770588001989,0.04975478,2098.1,2096.8,0.93918952]
[1770588002186,0.1024,2098.2,2096.9,1.19223283]
[1770588002413,0.1024,2098.2,2097.0,1.19217188]
[1770588002714,0.1024,2098.2,2097.0,1.19217856]
[1770588003093,0.1024,2098.2,2097.1,1.19212116]
[1770588003283,0.1024,2098.5,2097.2,1.19201795]
[1770588003695,0.1024,2098.3,2097.2,1.19206561]
[1770588005085,0.1024,2098.3,2097.2,2.13125513]
[1770588005907,1.51243657,2098.6,2097.3,0.93918952]
[1770588008616,0.32116324,2098.6,2097.5,0.93918952]
[1770588009995,0.002,2098.4,2097.5,0.93918952]
[1770588010806,0.002,2098.4,2097.7,0.93918952]
[1770588011005,0.002,2098.4,2097.5,1.19187772]
[1770588011194,0.002,2098.4,2097.5,2.13106724]
[1770588011399,0.002,2098.4,2097.6,0.93918952]
[1770588012919,0.002,2098.4,2097.8,1.43918952]
[1770588013317,0.002,2098.4,2097.8,0.5]
[1770588013903,0.002,2098.4,2097.6,1.19182778]
[1770588015423,0.002,2098.4,2097.5,2.13106292]
[1770588015628,1.4664345,2098.6,2097.5,2.13106292]
[1770588016832,1.4664345,2098.6,2097.6,0.99988346]
[1770588017398,1.4664345,2098.6,2097.7,1.19178147]
[1770588017895,1.4664345,2098.6,2097.9,0.5]
[1770588018323,1.4664345,2098.6,2097.7,1.19178147]
[1770588020442,0.27516324,2098.6,2097.7,2.19166493]
[1770588020723,1.46644674,2098.6,2097.7,2.19166493]
[1770588020943,0.27516324,2098.6,2097.7,2.19166493]
[1770588021934,0.27516324,2098.6,2097.8,0.99988346]
[1770588022240,0.002,2098.4,2097.8,0.99988346]
[1770588023646,0.002,2098.4,2097.8,2.191561]
[1770588026518,0.002,2098.4,2097.4,0.001]
[1770588026519,0.2335703,2098.2,2097.4,0.001]
[1770588026724,0.04975478,2098.0,2097.4,0.001]
[1770588026927,0.1024,2098.1,2097.1,0.001]
[1770588027236,0.04975478,2098.0,2097.1,0.001]
[1770588027908,1.19161105,2098.0,2097.1,1.00088346]
[1770588029841,1.19157939,2098.1,2097.1,1.00088346]
[1770588030729,0.1024,2098.1,2097.2,2.19194907]
[1770588031339,0.1024,2098.1,2097.2,0.99988346]
[1770588032242,0.90224359,2098.1,2097.1,0.001]
[1770588032620,1.19161105,2098.0,2097.1,0.001]
[1770588033018,1.19161105,2098.0,2097.1,1.00088346]
[1770588034122,1.19161105,2098.0,2097.4,0.001]
[1770588034524,1.19159458,2098.1,2097.4,0.001]
[1770588034926,0.95199837,2097.8,2097.1,0.001]
[1770588035448,0.90224359,2097.8,2097.1,0.001]
[1770588035620,0.1024,2097.8,2097.1,0.001]
[1770588036826,1.19178147,2097.7,2097.1,0.001]
[1770588037027,1.19161105,2098.0,2097.1,1.00088346]
[1770588037422,1.19149747,2098.2,2097.1,1.00088346]
[1770588037849,1.19149747,2098.2,2097.3,1.49988346]
[1770588038759,4.52147303,2098.3,2097.4,0.99988346]
[1770588038954,4.52147303,2098.3,2097.5,0.99988346]
[1770588039751,3.33,2098.3,2097.5,0.99988346]
[1770588040858,3.33,2098.3,2097.6,1.19183829]
[1770588041068,3.33,2098.3,2097.7,0.99988346]
[1770588042047,0.002,2098.4,2097.8,0.99988346]
[1770588042969,0.002,2098.4,2097.6,1.19183829]
[1770588042970,0.002,2098.4,2097.6,2.19172175]
[1770588043164,0.002,2098.4,2097.3,0.99988346]
[1770588043165,0.80184359,2098.4,2097.3,0.99988346]
[1770588043458,0.80184359,2098.4,2097.1,0.001]
[1770588043459,0.79984359,2097.9,2097.1,0.001]
[1770588043760,0.79984359,2097.9,2094.9,0.001]
[1770588043761,0.84959837,2097.7,2096.4,2.19240145]
[1770588043933,0.84959837,2097.7,2096.5,1.19246237]
[1770588044559,0.84959837,2097.7,2096.5,1.19246151]
[1770588045132,1.19183829,2097.6,2096.5,0.92537365]
[1770588045662,1.19161105,2098.0,2096.5,0.92537365]
[1770588045864,1.19161105,2098.0,2097.6,0.001]
[1770588047064,1.19161105,2098.0,2096.3,0.001]
[1770588047065,1.99068188,2097.6,2096.4,1.19251012]
[1770588047247,0.04975478,2097.4,2096.4,1.19251012]
[1770588047447,0.04975478,2097.4,2096.5,0.001]
[1770588048167,1.99068188,2097.6,2096.5,1.19346213]
[1770588048547,0.79884359,2097.5,2096.5,0.001]
[1770588049337,1.19195194,2097.4,2096.5,0.92637365]
[1770588050742,1.19195194,2097.4,2096.7,0.5]
[1770588051893,4.76739888,2097.6,2096.8,0.92537365]
[1770588051894,1.19183829,2097.6,2096.8,0.92537365]
[1770588052043,4.76646247,2098.0,2096.8,0.92537365]
[1770588053694,0.04975478,2097.9,2096.8,0.92537365]
[1770588053872,1.19172466,2097.8,2096.9,1.19223615]
[1770588055095,1.19172466,2097.8,2096.8,2.11762492]
[1770588055491,1.19172466,2097.8,2096.8,2.11766319]
[1770588055671,1.19172466,2097.8,2096.9,0.92537365]
[1770588057094,0.04975478,2097.9,2096.9,2.1175956]
[1770588058683,4.76646247,2098.0,2097.0,0.92537365]
[1770588058684,5.56530606,2098.0,2097.0,0.92537365]
[1770588059087,4.76646247,2098.0,2097.1,0.92537365]
[1770588059288,0.002,2097.8,2097.1,0.92537365]
[1770588061078,0.002,2097.8,2097.3,0.92537365]
[1770588063094,0.002,2097.8,2097.5,0.92537365]
[1770588063973,0.002,2097.8,2096.9,0.92537365]
[1770588064174,0.002,2097.8,2097.0,1.19217828]
[1770588064373,0.002,2097.8,2097.0,1.69217828]
[1770588064669,0.002,2097.8,2097.0,1.42537365]
[1770588064871,0.002,2097.8,2097.0,2.61754794]
[1770588065072,0.002,2097.8,2097.1,2.11749318]
[1770588065790,0.002,2097.8,2097.1,0.92537365]
[1770588066285,0.002,2097.8,2096.7,4.77036631]
[1770588066286,0.15215478,2097.3,2096.7,0.001]
[1770588066600,0.15215478,2097.3,2096.3,0.001]
[1770588066601,11.59233967,2097.0,2096.3,0.001]
[1770588066789,0.04975478,2096.7,2096.3,0.001]
[1770588067175,0.04975478,2096.7,2095.6,2.11934433]
[1770588067371,1.19240675,2096.6,2095.6,0.92637365]
[1770588069803,1.19240675,2096.6,2095.7,0.92537365]
[1770588070202,1.19240675,2096.6,2095.6,1.19397498]
[1770588070907,1.19240675,2096.6,2095.6,1.19397303]
[1770588071108,1.24216153,2096.6,2095.6,1.19397303]
[1770588071405,1.24216153,2096.6,2095.6,1.19397406]
[1770588072501,1.24216153,2096.6,2095.8,0.001]
[1770588072708,1.19240675,2096.6,2095.8,0.001]
[1770588076879,0.04975478,2096.4,2095.8,0.001]
[1770588077085,1.02528099,2096.3,2095.5,0.001]
[1770588079191,4.52563429,2096.2,2095.5,0.001]
[1770588082426,1.19263429,2096.2,2095.5,0.93881618]
[1770588082585,1.19229301,2096.8,2095.5,0.93881618]
[1770588084201,2.16781922,2096.8,2095.7,0.93781618]
[1770588084518,2.16781922,2096.8,2095.7,1.43781618]
[1770588085522,2.16781922,2096.8,2095.7,1.43881618]
[1770588085816,0.002,2096.6,2095.8,0.93781618]
[1770588086517,0.002,2096.6,2095.8,2.13066374]
[1770588087309,0.002,2096.6,2095.9,0.93781618]
[1770588088406,0.002,2096.6,2096.1,0.93781618]
[1770588088614,0.002,2096.8,2096.1,0.93781618]
[1770588090531,0.002,2096.8,2096.3,0.93781618]
[1770588090695,0.002,2097.2,2096.3,0.93781618]
[1770588091821,0.002,2097.2,2096.2,1.19263429]
[1770588092121,0.05175478,2097.2,2096.1,4.52565154]
[1770588092327,0.002,2097.2,2096.1,4.52565154]
[1770588092628,0.97552621,2097.1,2096.1,1.19266521]
[1770588092827,0.97552621,2097.1,2096.1,1.192685]
[1770588093309,0.42321398,2097.0,2096.0,2.13051567]
[1770588093506,0.42321398,2097.0,2095.7,0.001]
[1770588093507,0.97552621,2097.0,2095.8,1.19282999]
[1770588093703,10.87252435,2096.9,2095.8,1.19285503]
[1770588094128,10.87252435,2096.9,2095.7,2.13169508]
[1770588094420,10.87252435,2096.9,2095.9,0.5]
[1770588094709,10.82276957,2096.9,2095.9,0.5]
[1770588096118,1.19229301,2096.8,2095.9,1.69280079]
[1770588096732,1.19212245,2097.1,2096.0,0.93781618]
[1770588098018,4.77048981,2097.2,2096.1,1.19269118]
[1770588098220,4.77048981,2097.2,2096.1,2.13050736]
[1770588098624,0.002,2096.7,2096.1,2.13050736]
[1770588100550,0.002,2096.7,2095.8,2.13064488]
[1770588100916,0.002,2096.7,2095.8,0.93781618]
[1770588101146,0.002,2096.7,2095.7,1.19388485]
[1770588101835,0.002,2096.7,2095.8,1.19285287]
[1770588102621,1.19434988,2096.7,2095.7,0.001]
[1770588102930,1.19434988,2096.7,2096.0,0.5]
[1770588103312,0.97552621,2096.6,2095.7,0.001]
[1770588104536,1.19434988,2096.7,2095.7,0.93881618]
[1770588105521,1.19434988,2096.7,2095.9,0.95865925]
[1770588105522,0.002,2096.7,2095.9,0.95865925]
[1770588107660,0.002,2096.7,2096.0,1.19274809]
[1770588107825,0.002,2096.7,2096.1,0.5]
[1770588108745,0.002,2096.7,2096.2,0.95865925]
[1770588109734,0.002,2096.7,2096.3,1.19257739]
[1770588112654,0.002,2096.7,2096.2,4.77030959]
[1770588113842,0.002,2096.7,2096.2,5.72896884]
[1770588116432,0.002,2096.7,2096.1,3.834]
[1770588116636,9.84724336,2096.6,2095.9,0.001]
[1770588116833,0.98936234,2096.5,2095.7,0.001]
[1770588117057,1.03911712,2096.5,2095.7,0.001]
[1770588117263,0.98936234,2096.3,2095.7,0.001]
[1770588117562,0.1024,2096.4,2095.5,1.19399538]
[1770588117765,9.84724336,2096.6,2095.5,0.001]
[1770588117766,0.98936234,2096.5,2095.5,0.001]
[1770588119768,0.98936234,2096.3,2095.5,0.001]
[1770588120243,1.19252051,2096.4,2095.5,0.001]
[1770588120435,1.19252051,2096.4,2095.5,0.95965925]
[1770588122456,1.19246362,2096.5,2095.6,1.19297575]
[1770588122660,1.19246362,2096.5,2095.7,0.95865925]
[1770588123067,1.19242324,2096.6,2095.7,0.95865925]
[1770588123381,1.14242324,2096.6,2095.7,0.95865925]
[1770588123579,1.14242324,2096.6,2095.7,0.95965925]
[1770588123877,1.14442324,2096.6,2095.7,0.95965925]
[1770588124878,0.002,2096.6,2095.8,2.15152116]
[1770588126579,0.002,2096.6,2095.9,0.95865925]
[1770588127260,0.002,2096.6,2096.0,1.19274809]
[1770588127583,0.002,2096.6,2095.9,1.19277601]
[1770588127969,0.98936234,2096.3,2095.7,0.001]
[1770588128277,9.84924336,2096.6,2095.7,0.001]
[1770588128278,0.98936234,2096.5,2095.7,0.001]
[1770588129667,1.19252051,2096.4,2095.7,0.001]
[1770588131561,0.002,2096.6,2095.9,0.95865925]
[1770588133984,0.002,2096.6,2096.1,0.95865925]
[1770588136184,0.002,2096.6,2096.2,1.19263429]
[1770588136382,0.002,2096.4,2096.2,1.19263429]
[1770588136579,0.002,2096.6,2096.2,2.1188288]
[1770588138167,0.002,2096.6,2095.9,0.001]
[1770588138373,0.002,2096.6,2095.9,0.92719451]
[1770588142072,0.002,2096.6,2096.0,1.19274809]
[1770588144172,0.002,2096.6,2096.0,2.1189426]
[1770588146483,0.002,2096.6,2096.0,1.19274809]
[1770588147289,0.98469636,2096.6,2095.9,0.001]
[1770588147599,0.98469636,2096.6,2095.9,1.19380435]
[1770588147785,0.98469636,2096.6,2096.0,1.19272455]
[1770588147786,0.002,2096.6,2096.0,1.19272455]
[1770588147975,0.002,2096.6,2096.1,0.92619451]
[1770588148493,0.002,2096.6,2096.2,1.19263429]
[1770588149584,0.002,2096.4,2096.2,1.19263429]
[1770588151680,0.002,2096.4,2096.3,0.92619451]
[1770588152016,0.002,2097.2,2096.4,0.92619451]
[1770588153977,0.002,2097.2,2096.6,0.92619451]
[1770588156181,0.002,2097.2,2096.8,0.92619451]
[1770588156397,0.002,2097.2,2096.9,4.25819451]
[1770588159604,0.002,2097.4,2097.1,0.92619451]
[1770588159785,0.98269636,2098.2,2097.1,0.92619451]
[1770588160679,0.002,2098.3,2097.1,0.92619451]
[1770588161108,0.002,2098.3,2097.3,0.92619451]
[1770588161783,0.002,2098.3,2097.4,1.19195194]
[1770588161989,0.002,2098.3,2097.5,4.25819451]
[1770588162192,0.002,2098.3,2097.6,0.92619451]
[1770588163480,0.002,2098.3,2097.8,0.92619451]
[1770588164106,0.002,2098.3,2098.0,0.92619451]
[1770588164304,0.98269636,2099.0,2098.2,0.92619451]
[1770588164481,1.19101504,2099.1,2098.2,0.92619451]
[1770588165209,1.54606592,2099.2,2098.2,0.92619451]
[1770588165692,0.35513482,2099.2,2098.2,0.92619451]
[1770588166577,0.35513482,2099.2,2098.3,1.19144069]
[1770588166782,1.54606869,2099.2,2098.3,2.10226349]
[1770588169609,2.53947508,2099.2,2098.3,2.10226349]
[1770588169809,2.53947508,2099.2,2097.7,3.023]
[1770588169810,0.99340639,2099.1,2097.7,3.023]
[1770588170003,1.04316117,2099.1,2097.9,1.19166585]
[1770588170188,1.04316117,2099.1,2098.0,1.1916067]
[1770588171610,0.99340639,2098.9,2097.8,0.9108228]
[1770588172019,0.99340639,2098.9,2097.7,1.19178147]
[1770588172311,0.99340639,2098.9,2097.8,0.9108228]
[1770588172486,0.99340639,2098.9,2097.7,1.19178147]
[1770588173008,0.99340639,2098.9,2097.6,1.19180563]
[1770588174914,0.99340639,2098.6,2097.6,1.19180563]
[1770588176902,1.19132713,2098.5,2097.6,1.19180563]
[1770588177087,0.99340639,2098.4,2097.6,1.19180563]
[1770588178013,0.99340639,2098.4,2097.1,3.79]
[1770588178014,0.99340639,2098.4,2097.4,1.19192692]
[1770588178221,0.99340639,2098.4,2097.3,1.19200286]
[1770588178401,0.99340639,2098.4,2097.2,1.19202488]
[1770588178599,1.04316117,2098.4,2097.1,1.19209787]
[1770588178802,0.99340639,2098.3,2097.1,1.19212024]
[1770588179126,0.99340639,2098.1,2096.8,0.001]
[1770588180525,0.99340639,2098.1,2096.8,0.9118228]
[1770588181895,2.18501744,2098.0,2096.9,2.10305895]
[1770588182097,2.18492925,2098.2,2097.0,0.9108228]
[1770588182297,1.19152286,2098.2,2097.2,0.9108228]
[1770588182622,1.19144644,2098.3,2097.2,0.9108228]
[1770588182808,2.18482413,2098.4,2097.2,0.9108228]
[1770588183325,4.76532896,2098.5,2097.4,0.9108228]
[1770588183326,1.19135128,2098.5,2097.4,0.9108228]
[1770588183622,1.19135128,2098.5,2097.6,0.9108228]
[1770588183819,1.19324355,2098.7,2097.6,0.9108228]
[1770588184123,0.99540639,2098.7,2097.8,0.9108228]
[1770588184546,0.99540639,2098.7,2097.7,2.10260427]
[1770588186427,1.19127037,2098.6,2097.7,2.10260427]
[1770588187035,0.99340639,2098.5,2097.9,0.001]
[1770588187902,0.99340639,2098.4,2097.1,1.19211958]
[1770588188334,0.99340639,2098.1,2096.9,1.19220792]
[1770588188508,0.99340639,2097.9,2096.8,0.001]
[1770588188922,0.99340639,2097.9,2096.8,0.9118228]
[1770588192309,1.19172466,2097.8,2096.9,1.19223615]
[1770588193741,2.18490386,2098.2,2097.0,0.9108228]
[1770588194417,2.18490386,2098.2,2097.2,0.9108228]
[1770588195043,0.95216204,2098.1,2097.1,1.19212245]
[1770588195341,0.95216204,2098.1,2097.2,0.91611991]
[1770588196414,1.19149747,2098.2,2097.2,0.91611991]
[1770588196615,0.99364813,2098.2,2097.3,1.19200877]
[1770588198722,1.19155426,2098.1,2097.2,0.90193321]
[1770588199430,1.19155426,2098.1,2097.4,0.001]
[1770588199941,2.18520239,2098.1,2097.4,0.001]
[1770588200441,0.99364813,2098.0,2097.4,0.001]
[1770588200619,2.18531598,2097.9,2097.4,0.001]
[1770588200818,1.19166785,2097.9,2097.4,0.001]
[1770588201339,1.19164816,2098.0,2097.4,0.001]
[1770588201511,1.19144069,2098.3,2097.4,0.001]
[1770588201710,1.19144069,2098.3,2097.4,0.90293321]
[1770588202416,5.75941089,2098.4,2097.4,0.90293321]
[1770588202417,2.18503476,2098.4,2097.4,0.90293321]
[1770588202817,2.18503476,2098.4,2097.5,1.19189511]
[1770588203361,2.18503476,2098.4,2097.5,2.09382832]
[1770588203776,1.19140904,2098.4,2097.6,0.90193321]
[1770588204868,0.99564813,2098.5,2097.5,3.33]
[1770588205447,0.99564813,2098.5,2097.5,4.52189374]
[1770588205647,0.99564813,2098.5,2097.5,3.33]
[1770588205849,0.99564813,2098.5,2097.6,1.19183325]
[1770588206051,0.99564813,2098.5,2097.5,3.33]
[1770588206557,0.002,2098.5,2097.6,1.19183666]
[1770588206761,0.99564813,2098.5,2097.5,5.42378882]
[1770588206952,0.99364813,2098.3,2097.5,4.52189004]
[1770588208044,0.99364813,2098.3,2097.5,4.52189411]
[1770588208872,0.99364813,2098.1,2097.5,3.33]
[1770588210976,0.99364813,2097.9,2097.4,0.001]
[1770588211557,1.19161105,2098.0,2097.4,0.001]
[1770588212466,2.18525918,2098.0,2097.6,0.001]
[1770588215578,0.99364813,2098.3,2097.6,0.001]
[1770588215779,2.18513367,2098.3,2097.6,0.001]
[1770588216544,1.19148554,2098.3,2097.6,0.90293321]
[1770588216747,1.19148554,2098.3,2097.4,0.001]
[1770588216748,0.99364813,2098.2,2097.4,0.001]
[1770588217463,1.19155426,2098.1,2097.4,0.001]
[1770588217673,2.18520239,2098.1,2097.4,0.001]
[1770588221591,1.19334844,2098.5,2097.6,0.90193321]
[1770588221888,1.19334844,2098.5,2097.8,0.90193321]
[1770588221889,0.002,2098.5,2097.8,0.90193321]
[1770588224577,0.002,2098.5,2097.9,1.19166785]
[1770588225165,0.002,2098.3,2097.9,1.19166785]
[1770588225770,0.002,2098.3,2097.9,2.1257563]
[1770588226680,0.002,2098.3,2097.8,4.76772095]
[1770588226681,0.002,2098.5,2098.2,1.19149747]
[1770588226881,0.002,2098.7,2098.1,2.12560093]
[1770588227102,0.002,2098.6,2098.1,2.12560093]
[1770588227386,0.002,2098.7,2098.1,2.12560093]
[1770588227590,0.002,2098.6,2098.1,2.12560093]
[1770588227787,0.002,2098.6,2098.2,0.93408845]
[1770588228584,0.002,2098.6,2098.3,1.19144069]
[1770588228779,0.002,2098.7,2098.3,1.19144069]
[1770588228982,0.004,2098.7,2098.3,2.12552914]
[1770588229283,0.002,2098.7,2098.4,0.93408845]
[1770588231673,0.002,2098.7,2098.5,2.12541558]
[1770588231871,0.002,2098.7,2098.3,4.52141181]
[1770588231872,0.004,2098.7,2098.3,4.52141181]
[1770588232085,0.004,2098.7,2098.3,3.33]
[1770588232773,0.004,2098.7,2098.2,1.19149319]
[1770588234489,0.002,2098.7,2098.1,1.19155426]
[1770588234689,0.002,2098.6,2098.1,1.19155426]
[1770588235595,0.002,2098.5,2098.1,1.19155426]
[1770588236500,0.002,2098.5,2098.1,2.12564271]
[1770588236797,0.002,2098.7,2098.2,0.93408845]
[1770588237109,0.002,2098.6,2098.2,0.93408845]
[1770588237980,0.002,2098.6,2098.4,0.001]
[1770588238398,0.002,2098.5,2098.4,0.001]
[1770588242130,0.002,2098.9,2098.5,0.93408845]
[1770588242404,0.3457631,2099.1,2098.6,4.26308845]
[1770588242405,0.10974817,2099.1,2098.6,4.26308845]
[1770588242578,0.002,2099.0,2098.7,0.93408845]
[1770588243080,0.9368324,2099.0,2098.4,0.001]
[1770588243483,1.1911001,2098.9,2098.4,0.001]
[1770588244010,1.19107136,2099.0,2098.4,0.001]
[1770588244384,2.12790376,2099.0,2098.4,0.001]
[1770588246907,1.19107136,2099.0,2098.4,0.001]
[1770588249629,0.9368324,2098.9,2098.4,0.001]
[1770588250613,1.19115685,2098.8,2098.6,0.001]
[1770588250921,1.19315685,2098.8,2098.6,0.001]
[1770588257515,0.002,2098.8,2098.6,0.001]
[1770588268021,0.002,2098.8,2098.6,0.93501823]
[1770588268706,0.002,2098.8,2098.6,2.12626529]
[1770588268907,0.002,2098.8,2098.6,0.93501823]
[1770588273635,0.002,2098.8,2098.6,2.12628723]
[1770588274411,0.002,2098.8,2098.6,0.93501823]
[1770588274606,0.002,2098.8,2098.6,0.001]
[1770588275116,0.002,2098.8,2098.6,1.19226816]
[1770588275825,0.002,2099.0,2098.6,1.19226816]
[1770588276121,0.002,2099.0,2098.6,0.001]
[1770588277145,0.002,2099.0,2098.6,0.93501823]
[1770588277745,0.002,2099.0,2098.7,1.1912136]
[1770588277925,0.002,2099.0,2098.8,0.93401823]
[1770588280153,0.002,2099.0,2098.9,2.12511833]
[1770588285847,0.96433337,2099.0,2098.6,1.19225709]
[1770588286061,0.96433337,2099.0,2098.6,1.19226332]
[1770588286259,0.002,2099.0,2098.6,1.19226332]
[1770588287046,0.002,2099.0,2098.8,0.001]
[1770588288049,0.002,2099.2,2099.0,0.97821038]
[1770588288564,1.19257775,2099.9,2099.2,0.97821038]
[1770588289174,0.002,2099.9,2099.4,9.15991477]
[1770588289464,0.002,2099.9,2099.4,0.97821038]
[1770588290035,0.002,2099.9,2099.3,1.19083167]
[1770588290275,0.002,2099.9,2099.4,1.19081478]
[1770588292966,0.002,2099.9,2099.3,1.19087314]
[1770588293158,0.002,2099.9,2099.4,0.97821038]
[1770588296380,0.002,2099.9,2099.4,2.16898392]
[1770588298643,0.96433337,2099.9,2099.2,3.329]
[1770588299061,0.96433337,2099.9,2099.2,4.51989752]
[1770588299262,0.96433337,2099.9,2099.4,0.001]
[1770588299770,0.002,2099.7,2099.4,0.001]
[1770588301380,0.002,2099.7,2099.4,0.97921038]
[1770588301675,4.76073409,2100.6,2099.5,0.97821038]
[1770588301676,2.15255592,2100.5,2099.5,0.97821038]
[1770588301975,0.96233337,2100.4,2099.5,0.97821038]
[1770588302275,2.49729936,2100.7,2099.7,0.97821038]
[1770588302485,2.49729936,2100.7,2099.9,0.97821038]
[1770588302652,0.3448575,2100.7,2099.9,1.02796516]
[1770588302845,0.3448575,2100.7,2099.9,0.97821038]
[1770588303049,0.3448575,2100.7,2100.0,2.16868657]
[1770588303274,0.3448575,2100.7,2100.1,0.97821038]
[1770588303775,1.53494128,2100.7,2099.9,2.16872762]
[1770588303948,0.96233337,2100.6,2099.8,9.51855712]
[1770588304153,0.96233337,2100.6,2099.8,5.0]
[1770588304365,0.96233337,2100.6,2099.8,8.328]
[1770588305282,1.19019281,2100.5,2099.8,8.328]
[1770588305782,0.96233337,2100.4,2099.8,8.328]
[1770588306095,1.19019281,2100.5,2099.8,9.51857832]
[1770588306250,1.19019281,2100.5,2099.8,8.328]
[1770588306447,2.15252618,2100.5,2099.8,8.328]
[1770588307287,1.19030614,2100.3,2099.8,8.328]
[1770588309476,1.19024947,2100.4,2099.8,10.49677272]
[1770588310294,1.19024947,2100.4,2099.8,9.30621038]
[1770588310470,1.19024947,2100.4,2099.8,5.97821038]
[1770588311589,1.19013615,2100.6,2099.8,5.97821038]
[1770588312292,1.19013615,2100.6,2099.9,0.001]
[1770588312585,0.002,2100.4,2099.9,0.001]
[1770588314886,0.96433337,2100.4,2099.9,0.001]
[1770588315795,0.98202238,2100.2,2099.9,0.001]
[1770588317169,0.98202238,2100.2,2099.4,0.001]
[1770588317498,0.98202238,2100.2,2099.4,1.19181469]
[1770588318696,1.1904195,2100.1,2099.4,1.19181469]
[1770588318914,0.002,2100.4,2099.6,0.91808769]
[1770588319598,1.19225046,2100.4,2099.6,0.91808769]
[1770588321199,0.002,2100.4,2099.7,1.19064628]
[1770588321501,0.002,2100.4,2099.7,2.10873397]
[1770588321708,0.98402238,2100.4,2099.5,2.10880016]
[1770588321862,0.98402238,2100.4,2099.6,1.19070201]
[1770588322769,0.98402238,2100.4,2099.7,0.91808769]
[1770588322770,0.002,2100.4,2099.7,0.91808769]
[1770588323390,0.002,2100.4,2099.8,1.19058957]
[1770588323598,0.002,2100.4,2099.9,0.91808769]
[1770588325279,0.002,2100.2,2099.9,0.91808769]
[1770588325502,0.002,2100.2,2099.9,2.10859723]
[1770588327370,0.002,2100.2,2100.0,0.91808769]
[1770588327576,1.19006826,2100.8,2100.1,2.10850719]
[1770588328195,4.7594261,2101.1,2100.2,0.91808769]
[1770588328196,4.75972991,2101.0,2100.2,0.91808769]
[1770588328407,0.98202238,2100.9,2100.0,2.10852794]
[1770588328601,0.98202238,2100.9,2099.8,2.1096763]
[1770588328766,0.98202238,2100.9,2099.8,5.4366763]
[1770588330099,0.98202238,2100.7,2099.8,4.51858861]
[1770588333684,1.19013615,2100.6,2099.8,4.51858861]
[1770588333885,0.98202238,2101.3,2099.9,0.91808769]
[1770588335185,0.98202238,2101.3,2099.8,4.51858861]
[1770588335186,1.03177716,2101.3,2099.8,4.51858861]
[1770588335801,0.98202238,2100.9,2099.8,0.001]
[1770588338178,0.98202238,2100.7,2099.8,0.001]
[1770588341932,0.98202238,2100.5,2099.8,0.001]
[1770588342260,0.98202238,2100.5,2099.5,0.001]
[1770588342261,0.98202238,2100.4,2099.5,0.001]
[1770588344904,0.96224477,2100.2,2099.5,0.001]
[1770588347434,2.15266427,2100.1,2099.5,0.001]
[1770588349407,4.76122458,2100.4,2099.5,0.95585901]
[1770588350931,4.76122458,2100.4,2099.7,0.001]
[1770588351628,4.76122458,2100.4,2099.7,0.95585901]
[1770588352839,0.96224477,2100.3,2099.7,0.001]
[1770588354151,2.15260759,2100.2,2099.7,0.001]
[1770588356633,1.19036282,2100.2,2099.7,0.001]
[1770588356807,2.15260759,2100.2,2099.7,0.001]
[1770588357009,0.96224477,2100.1,2099.7,0.001]
[1770588357259,1.19036282,2100.2,2099.7,0.001]
[1770588357441,1.19036282,2100.2,2099.7,0.95585901]
[1770588358125,4.76080729,2100.5,2099.7,0.95585901]
[1770588358510,5.72305206,2100.5,2099.7,0.95585901]
[1770588359515,4.76080729,2100.5,2099.8,0.95485901]
[1770588360138,1.19019281,2100.6,2099.8,0.95485901]